bitfinex/quotes_SOLUSD_20250420
["timestamp","ask_amount","ask_price","bid_price","bid_amount"]
[1745181865486,1e-08,137.59,137.58,103.44749772]
[1745181869290,1e-08,137.59,137.58,91.52962075]
[1745181869494,1e-08,137.59,137.58,80.7]
[1745181869668,1e-08,137.59,137.58,95.58]
[1745181869984,1e-08,137.59,137.58,14.88]
[1745181870188,1e-08,137.59,137.58,25.70962075]
[1745181871165,1e-08,137.59,137.58,14.88]
[1745181873689,26.00000001,137.59,137.58,14.88]
[1745181875473,1e-08,137.59,137.58,14.88]
[1745181875676,26.00000001,137.59,137.58,14.88]
[1745181875983,1e-08,137.59,137.58,14.88]
[1745181880500,10.82962076,137.59,137.58,14.88]
[1745181881174,26.0,137.57,137.53,259.86962075]
[1745181881393,26.0,137.57,137.54,14.88]
[1745181881600,26.0,137.57,137.54,25.70962075]
[1745181881974,26.0,137.57,137.54,14.88]
[1745181882504,26.0,137.57,137.54,25.70962075]
[1745181883490,26.00000001,137.59,137.56,10.82962075]
[1745181883890,26.00000001,137.59,137.55,10.82962075]
[1745181884404,26.00000001,137.59,137.54,26.78739022]
[1745181884585,10.82962075,137.57,137.54,14.88]
[1745181885180,44.64964886,137.58,137.54,14.88]
[1745181885181,55.47926961,137.58,137.54,14.88]
[1745181885898,26.0,137.55,137.53,249.04]
[1745181886119,36.82962075,137.55,137.54,14.88]
[1745181886483,55.47926961,137.55,137.54,14.88]
[1745181886999,106.38935321,137.55,137.54,14.88]
[1745181887202,106.38935321,137.55,137.52,0.063]
[1745181887203,88.28964886,137.53,137.52,0.063]
[1745181887398,73.11926961,137.53,137.52,0.063]
[1745181887792,74.67716961,137.53,137.52,0.063]
[1745181888390,125.26679345,137.53,137.49,14.943]
[1745181888585,10.82962075,137.5,137.49,14.943]
[1745181889508,18.10234802,137.5,137.49,14.943]
[1745181891008,10.82962075,137.5,137.49,14.943]
[1745181899395,36.82962075,137.5,137.49,14.943]
[1745181901414,80.46962075,137.5,137.49,14.943]
[1745181903228,26.0,137.5,137.49,14.943]
[1745181903526,18.64964886,137.53,137.49,25.77262075]
[1745181903696,26.0,137.52,137.49,25.77262075]
[1745181904128,26.0,137.52,137.49,14.943]
[1745181906417,10.82962075,137.51,137.49,14.943]
[1745181906922,36.82962075,137.52,137.49,14.943]
[1745181908725,26.0,137.52,137.49,14.943]
[1745181909910,26.0,137.52,137.49,25.77262075]
[1745181910112,26.0,137.52,137.49,14.943]
[1745181911823,10.82962075,137.51,137.49,14.943]
[1745181912421,36.82962075,137.5,137.49,14.943]
[1745181912631,55.47926961,137.5,137.49,14.943]
[1745181912798,26.0,137.5,137.49,14.943]
[1745181928749,18.64964886,137.55,137.49,25.77262075]
[1745181929047,18.64964886,137.55,137.5,10.82962075]
[1745181929550,26.0,137.54,137.5,10.82962075]
[1745181930048,10.82962075,137.56,137.51,10.82962075]
[1745181930249,26.0,137.55,137.51,10.82962075]
[1745181931123,0.03,137.58,137.53,10.82962075]
[1745181931329,0.03,137.58,137.55,10.82962075]
[1745181931523,0.03,137.58,137.54,25.70962075]
[1745181931745,26.0,137.57,137.54,14.88]
[1745181932649,26.0,137.56,137.54,25.70962075]
[1745181933762,26.0,137.56,137.54,14.88]
[1745181937729,26.0,137.56,137.54,25.70962075]
[1745181937934,0.03,137.58,137.54,25.70962075]
[1745181938534,26.0,137.56,137.54,25.70962075]
[1745181938735,26.0,137.56,137.54,14.88]
[1745181940055,26.0,137.56,137.55,10.82962075]
[1745181940236,26.0,137.56,137.54,14.88]
[1745181940237,26.0,137.57,137.54,106.40962075]
[1745181942154,26.0,137.57,137.56,10.82962075]
[1745181942353,0.03,137.58,137.56,10.82962075]
[1745181942559,0.03,137.58,137.57,10.82962075]
[1745181942745,0.03,137.58,137.56,10.82962075]
[1745181946241,0.03,137.58,137.56,91.52962075]
[1745181946659,0.03,137.58,137.57,10.82962075]
[1745181947963,0.03,137.58,137.56,91.52962075]
[1745181949459,0.03,137.58,137.57,10.82962075]
[1745181949860,0.03,137.58,137.57,91.52962075]
[1745181956066,0.03,137.58,137.57,80.7]
[1745181956780,0.03,137.58,137.57,91.52962075]
[1745181961394,0.03,137.58,137.57,106.38962075]
[1745181965076,0.03,137.58,137.57,95.56]
[1745181965286,0.03,137.58,137.57,106.38962075]
[1745181965490,0.03,137.58,137.57,95.56]
[1745181965658,0.03,137.58,137.57,106.38962075]
[1745181971686,0.03,137.58,137.57,95.56]
[1745181971984,0.03,137.58,137.57,106.38962075]
[1745181972393,0.03,137.58,137.57,80.7]
[1745181972686,10.85962075,137.58,137.57,14.86]
[1745181973194,0.03,137.58,137.57,14.86]
[1745181973986,10.85962075,137.58,137.57,14.86]
[1745181978685,29.50926961,137.58,137.57,14.86]
[1745181978888,26.0,137.56,137.52,80.7]
[1745181979087,36.82962075,137.56,137.53,14.86]
[1745181980883,36.82962075,137.56,137.52,80.7]
[1745181981092,36.82962075,137.56,137.53,14.86]
[1745181981768,10.82962075,137.54,137.53,14.86]
[1745181984084,10.82962075,137.54,137.49,329.803]
[1745181984295,10.82962075,137.53,137.5,14.86]
[1745181984987,18.64964886,137.55,137.5,14.86]
[1745181985193,18.64964886,137.55,137.5,25.68962075]
[1745181985681,29.47926961,137.55,137.5,25.68962075]
[1745181985880,29.47926961,137.55,137.5,14.86]
[1745181986479,29.47926961,137.55,137.5,25.68962075]
[1745181988085,18.64964886,137.55,137.5,25.68962075]
[1745181988280,29.47926961,137.55,137.5,25.68962075]
[1745181988982,29.47926961,137.55,137.5,14.86]
[1745181990377,29.47926961,137.55,137.5,25.68962075]
[1745181991297,29.47926961,137.55,137.5,14.86]
[1745181991796,29.47926961,137.55,137.5,25.68962075]
[1745181992699,29.47926961,137.55,137.5,14.86]
[1745181992993,10.82962075,137.53,137.5,14.86]
[1745181993985,10.82962075,137.54,137.5,14.86]
[1745182001294,10.82962075,137.53,137.5,14.86]
[1745182001478,18.64964886,137.55,137.5,14.86]
[1745182001683,29.47926961,137.55,137.5,25.68962075]
[1745182002280,10.82962075,137.54,137.5,14.86]
[1745182004185,0.03,137.58,137.5,25.68962075]
[1745182004396,26.0,137.55,137.51,10.82962075]
[1745182004783,36.82962075,137.55,137.5,25.68962075]
[1745182006505,26.0,137.55,137.51,10.82962075]
[1745182007707,26.0,137.55,137.51,91.52962075]
[1745182010406,0.03,137.58,137.53,10.82962075]
[1745182010613,26.0,137.57,137.53,91.52962075]
[1745182011723,26.0,137.57,137.53,80.7]
[1745182012315,36.82962075,137.57,137.53,80.7]
[1745182012611,26.0,137.57,137.53,80.7]
[1745182013509,10.85962075,137.58,137.53,80.7]
[1745182013726,10.85962075,137.58,137.53,91.52962075]
[1745182014416,10.82962075,137.57,137.53,80.7]
[1745182015795,0.03,137.58,137.53,80.7]
[1745182016094,10.82962075,137.57,137.53,80.7]
[1745182017817,10.85962075,137.58,137.53,91.52962075]
[1745182018223,10.85962075,137.58,137.54,14.86]
[1745182019421,10.85962075,137.58,137.54,95.56]
[1745182020418,0.03,137.58,137.54,95.56]
[1745182020620,10.82962075,137.57,137.54,95.56]
[1745182021819,10.82962075,137.56,137.54,95.56]
[1745182022922,36.82962075,137.57,137.54,95.56]
[1745182024928,10.82962075,137.56,137.54,95.56]
[1745182027634,36.82962075,137.57,137.54,95.56]
[1745182027831,0.03,137.58,137.54,106.38962075]
[1745182028134,26.03,137.58,137.54,106.38962075]
[1745182029327,36.85962075,137.58,137.54,106.38962075]
[1745182030032,10.82962075,137.57,137.54,95.56]
[1745182032710,36.85962075,137.58,137.54,95.56]
[1745182033246,26.03,137.58,137.54,106.38962075]
[1745182033944,0.03,137.58,137.55,10.82962075]
[1745182034238,0.03,137.58,137.57,10.82962075]
[1745182034421,0.03,137.58,137.57,102.70828875]
[1745182036035,0.03,137.58,137.57,91.878668]
[1745182036419,0.03,137.58,137.57,102.70828875]
[1745182037038,0.03,137.58,137.57,91.878668]
[1745182041332,0.03,137.58,137.57,102.70828875]
[1745182050717,0.03,137.58,137.57,121.35793761]
[1745182054647,1e-08,137.59,137.58,80.67]
[1745182054847,1e-08,137.59,137.58,102.67828875]
[1745182058330,1e-08,137.59,137.58,117.51828875]
[1745182059556,1e-08,137.59,137.58,106.688668]
[1745182059941,1e-08,137.59,137.58,117.51828875]
[1745182060859,1e-08,137.59,137.58,106.688668]
[1745182061234,26.00000001,137.59,137.58,95.51]
[1745182061859,1e-08,137.59,137.58,95.51]
[1745182062042,1e-08,137.59,137.58,14.84]
[1745182071472,1e-08,137.59,137.58,25.66962075]
[1745182071655,1e-08,137.59,137.58,36.84828875]
[1745182072168,1e-08,137.59,137.58,26.018668]
[1745182072373,1e-08,137.59,137.58,36.84828875]
[1745182072557,1e-08,137.59,137.58,26.018668]
[1745182072759,1e-08,137.59,137.58,14.84]
[1745182073802,10.82962076,137.59,137.58,14.84]
[1745182078780,1e-08,137.59,137.58,14.84]
[1745182079291,10.82962076,137.59,137.58,14.84]
[1745182085397,10.82962076,137.59,137.54,248.98]
[1745182085575,1e-08,137.59,137.58,14.84]
[1745182085775,10.82962076,137.59,137.58,14.84]
[1745182092209,36.82962076,137.59,137.58,14.84]
[1745182099987,44.64964886,137.58,137.52,329.753]
[1745182100183,10.82962075,137.53,137.52,329.753]
[1745182100510,10.82962075,137.53,137.52,263.903]
[1745182100803,10.82962075,137.53,137.52,0.063]
[1745182101307,10.82962075,137.53,137.52,14.883]
[1745182104005,18.64964886,137.52,137.51,14.82]
[1745182104217,26.0,137.5,137.49,0.063]
[1745182104398,36.82962075,137.5,137.49,0.063]
[1745182104601,55.47926961,137.5,137.48,0.063]
[1745182104805,10.82962075,137.49,137.48,0.063]
[1745182104991,26.0,137.47,137.46,0.063]
[1745182105304,36.82962075,137.47,137.46,14.883]
[1745182114018,55.47926961,137.47,137.46,14.883]
[1745182116317,36.82962075,137.47,137.46,14.883]
[1745182121428,55.47926961,137.47,137.46,14.883]
[1745182121811,18.64964886,137.46,137.44,14.883]
[1745182122020,62.753584,137.47,137.44,14.883]
[1745182122021,10.82962075,137.45,137.44,14.883]
[1745182122525,72.79775261,137.45,137.44,14.883]
[1745182122825,44.64964886,137.43,137.42,14.883]
[1745182123127,55.47926961,137.43,137.41,14.82]
[1745182123332,10.82962075,137.42,137.41,14.82]
[1745182123513,43.56,137.47,137.41,14.82]
[1745182123719,10.82962075,137.42,137.41,14.82]
[1745182125012,10.82962075,137.44,137.41,14.82]
[1745182127939,26.0,137.45,137.41,14.82]
[1745182128111,10.82962075,137.44,137.41,95.49]
[1745182128314,10.82962075,137.43,137.41,95.49]
[1745182129633,10.82962075,137.44,137.41,95.49]
[1745182130131,26.0,137.45,137.41,95.49]
[1745182130435,10.82962075,137.44,137.41,95.49]
[1745182132612,36.82962075,137.45,137.41,95.49]
[1745182132814,7.8598,137.51,137.41,106.31962075]
[1745182133041,43.318483,137.52,137.43,10.82962075]
[1745182133230,10.82962075,137.48,137.43,10.82962075]
[1745182133538,10.82962075,137.48,137.43,91.49962075]
[1745182134560,10.82962075,137.46,137.43,80.67]
[1745182134721,26.0,137.48,137.43,80.67]
[1745182134913,10.82962075,137.46,137.43,80.67]
[1745182135832,10.82962075,137.47,137.43,80.67]
[1745182137827,10.82962075,137.46,137.43,80.67]
[1745182141358,36.82962075,137.48,137.43,91.49962075]
[1745182145444,36.82962075,137.48,137.44,14.82]
[1745182148619,36.82962075,137.48,137.44,95.49]
[1745182150341,0.063,137.51,137.44,106.31962075]
[1745182150548,36.89262075,137.51,137.45,10.82962075]
[1745182150930,10.82962075,137.5,137.45,10.82962075]
[1745182152047,10.82962075,137.49,137.44,106.31962075]
[1745182152760,10.82962075,137.48,137.44,95.49]
[1745182154055,36.82962075,137.49,137.44,95.49]
[1745182154256,26.0,137.49,137.45,10.82962075]
[1745182156368,26.0,137.49,137.44,106.31962075]
[1745182157637,36.82962075,137.49,137.44,106.31962075]
[1745182158038,26.0,137.49,137.45,10.82962075]
[1745182158253,36.89262075,137.51,137.46,10.82962075]
[1745182159656,10.82962075,137.5,137.45,10.82962075]
[1745182159863,10.82962075,137.5,137.46,249.2]
[1745182163167,10.82962075,137.5,137.46,329.87]
[1745182164366,10.82962075,137.49,137.46,329.87]
[1745182164549,10.82962075,137.47,137.46,329.87]
[1745182164865,10.82962075,137.47,137.46,344.69]
[1745182165254,26.0,137.48,137.46,344.69]
[1745182165453,10.82962075,137.47,137.46,344.69]
[1745182169166,10.82962075,137.47,137.46,264.02]
[1745182170363,26.0,137.48,137.46,264.02]
[1745182170555,10.82962075,137.47,137.46,264.02]
[1745182172046,10.82962075,137.47,137.46,14.82]
[1745182172765,29.47926961,137.47,137.46,14.82]
[1745182173176,10.82962075,137.47,137.46,14.82]
[1745182173976,26.0,137.44,137.43,14.82]
[1745182174270,80.14810375,137.44,137.43,14.82]
[1745182174461,80.14810375,137.44,137.4,249.263]
[1745182174662,10.82962075,137.41,137.4,249.263]
[1745182174854,36.82962075,137.41,137.4,264.083]
[1745182175576,36.82962075,137.41,137.4,249.263]
[1745182175769,55.47926961,137.41,137.4,264.083]
[1745182176681,36.82962075,137.41,137.4,264.083]
[1745182188786,29.47926961,137.41,137.4,264.083]
[1745182189005,26.0,137.39,137.38,80.733]
[1745182189193,36.82962075,137.39,137.38,95.553]
[1745182189696,36.82962075,137.39,137.38,14.883]
[1745182199319,99.03926961,137.39,137.38,14.883]
[1745182199495,62.20964886,137.38,137.37,14.82]
[1745182199701,73.03926961,137.38,137.37,14.82]
[1745182201721,54.38962075,137.38,137.37,14.82]
[1745182201921,10.82962075,137.38,137.37,14.82]
[1745182202122,43.56,137.4,137.37,14.82]
[1745182202305,36.82962075,137.38,137.37,14.82]
[1745182204427,55.47926961,137.38,137.37,14.82]
[1745182204928,99.03926961,137.38,137.37,14.82]
[1745182211419,88.20964886,137.38,137.37,14.82]
[1745182211730,99.03926961,137.38,137.37,14.82]
[1745182213213,88.20964886,137.38,137.37,14.82]
[1745182213414,99.03926961,137.38,137.37,14.82]
[1745182225632,106.31834953,137.38,137.37,14.82]
[1745182225832,106.31834953,137.38,137.36,0.063]
[1745182226035,54.38962075,137.37,137.36,0.063]
[1745182226339,73.03926961,137.37,137.36,0.063]
[1745182227955,80.31887942,137.37,137.36,0.063]
[1745182228143,123.63736242,137.37,137.36,0.063]
[1745182228640,80.31887942,137.37,137.36,0.063]
[1745182229949,73.03926961,137.37,137.36,0.063]
[1745182230243,80.31887942,137.37,137.36,0.063]
[1745182237051,87.57787942,137.37,137.36,0.063]
[1745182237235,80.31887942,137.37,137.36,0.063]
[1745182240548,69.48978863,137.36,137.35,14.863]
[1745182240854,88.20964886,137.33,137.32,14.883]
[1745182241034,99.03926961,137.33,137.32,14.883]
[1745182244733,106.32099974,137.33,137.32,14.883]
[1745182257171,99.03926961,137.33,137.32,14.883]
[1745182270677,36.82962075,137.33,137.32,14.883]
[1745182278381,43.56,137.37,137.32,14.883]
[1745182278584,10.82962075,137.36,137.32,22.587]
[1745182279086,36.82962075,137.36,137.32,22.587]
[1745182279273,10.82962075,137.36,137.32,22.587]
[1745182279473,10.82962075,137.35,137.32,22.587]
[1745182280788,10.82962075,137.34,137.32,22.587]
[1745182280972,10.82962075,137.34,137.32,103.257]
[1745182281484,10.82962075,137.33,137.32,97.2063]
[1745182281674,10.82962075,137.33,137.32,95.553]
[1745182286392,10.82962075,137.33,137.32,14.883]
[1745182289483,26.0,137.33,137.32,14.883]
[1745182290000,10.82962075,137.36,137.32,16.4014]
[1745182290184,36.82962075,137.36,137.32,16.4014]
[1745182291395,10.82962075,137.35,137.32,16.4014]
[1745182291577,10.82962075,137.34,137.32,16.4014]
[1745182292298,10.82962075,137.35,137.32,16.4014]
[1745182292597,10.82962075,137.34,137.32,16.4014]
[1745182293684,10.82962075,137.34,137.32,14.883]
[1745182294090,10.82962075,137.35,137.32,14.883]
[1745182294799,10.82962075,137.34,137.32,14.883]
[1745182300309,10.82962075,137.33,137.32,14.883]
[1745182310730,55.47926961,137.33,137.32,0.063]
[1745182310939,73.03926961,137.33,137.32,14.843]
[1745182311734,80.32099974,137.33,137.32,14.843]
[1745182313034,73.03926961,137.33,137.32,14.843]
[1745182313239,29.47926961,137.33,137.32,14.843]
[1745182315426,36.82962075,137.33,137.32,14.843]
[1745182328846,10.82962075,137.36,137.32,95.513]
[1745182329067,43.56,137.39,137.32,95.513]
[1745182329232,26.0,137.36,137.32,95.513]
[1745182329432,10.82962075,137.37,137.32,95.513]
[1745182329632,36.82962075,137.37,137.32,95.513]
[1745182331349,26.0,137.37,137.32,95.513]
[1745182331549,36.82962075,137.37,137.32,95.513]
[1745182332454,26.0,137.37,137.32,106.34262075]
[1745182332651,10.82962075,137.38,137.33,18.71242075]
[1745182333066,26.0,137.39,137.33,18.71242075]
[1745182333360,10.82962075,137.38,137.33,99.38242075]
[1745182333936,26.0,137.39,137.34,10.82962075]
[1745182334138,26.0,137.39,137.35,10.82962075]
[1745182334355,26.0,137.39,137.34,10.82962075]
[1745182334555,10.82962075,137.38,137.33,99.38242075]
[1745182334755,10.82962075,137.36,137.33,88.5528]
[1745182334942,10.82962075,137.35,137.33,88.5528]
[1745182335150,10.82962075,137.35,137.33,7.8828]
[1745182335862,10.82962075,137.36,137.33,7.8828]
[1745182336243,26.0,137.37,137.33,7.8828]
[1745182336443,10.82962075,137.36,137.33,7.8828]
[1745182336864,10.82962075,137.35,137.33,7.8828]
[1745182337740,10.82962075,137.34,137.32,80.733]
[1745182338068,43.318483,137.36,137.33,14.78]
[1745182338244,26.0,137.37,137.33,14.78]
[1745182338562,62.20964886,137.39,137.33,14.78]
[1745182338563,26.0,137.34,137.33,14.78]
[1745182339068,36.82962075,137.34,137.33,14.78]
[1745182348474,26.0,137.34,137.33,14.78]
[1745182348670,36.82962075,137.34,137.33,14.78]
[1745182355782,36.82962075,137.35,137.33,14.78]
[1745182359184,10.82962075,137.34,137.33,14.78]
[1745182374885,26.0,137.37,137.33,14.78]
[1745182375884,36.82962075,137.37,137.33,14.78]
[1745182376093,26.0,137.34,137.33,14.78]
[1745182376491,10.82962075,137.34,137.33,14.78]
[1745182392401,55.47926961,137.34,137.33,14.78]
[1745182392701,44.64964886,137.33,137.32,0.063]
[1745182392883,44.64964886,137.33,137.31,14.823]
[1745182392884,55.47926961,137.33,137.31,14.823]
[1745182393095,29.47926961,137.32,137.31,14.823]
[1745182396508,73.11926961,137.32,137.31,14.823]
[1745182399113,80.40153002,137.32,137.31,14.823]
[1745182399316,18.64964886,137.31,137.3,14.823]
[1745182399521,29.47926961,137.31,137.3,14.823]
[1745182400006,26.0,137.3,137.29,14.823]
[1745182400210,18.64964886,137.29,137.28,14.823]
[1745182400416,29.47926961,137.29,137.28,14.823]
[1745182404319,72.79775261,137.29,137.28,14.823]
[1745182406406,123.72160431,137.29,137.26,0.03]
[1745182406607,44.64964886,137.27,137.26,14.79]
[1745182406812,55.47926961,137.27,137.26,14.79]
[1745182407206,44.64964886,137.25,137.24,14.79]
[1745182407504,99.11926961,137.25,137.22,0.03]
[1745182407814,55.47926961,137.23,137.22,0.03]
[1745182408115,26.0,137.2,137.19,0.03]
[1745182408335,36.82962075,137.2,137.19,0.03]
[1745182409320,98.79775261,137.2,137.19,0.03]
[1745182410204,98.79775261,137.2,137.14,6.3507]
[1745182410205,36.82962075,137.16,137.14,0.03]
[1745182410404,36.82962075,137.15,137.14,0.03]
[1745182411299,55.47926961,137.15,137.14,0.03]
[1745182416025,36.82962075,137.15,137.14,0.03]
[1745182421841,18.64964886,137.18,137.14,0.03]
[1745182422153,10.82962075,137.16,137.14,0.03]
[1745182422948,10.82962075,137.15,137.14,0.03]
[1745182427451,26.0,137.17,137.14,0.03]
[1745182427751,10.82962075,137.16,137.14,0.03]
[1745182428049,10.82962075,137.15,137.14,0.03]
[1745182430848,26.0,137.17,137.14,0.03]
[1745182431153,10.82962075,137.15,137.14,0.03]
[1745182438855,26.0,137.17,137.14,0.03]
[1745182439161,36.82962075,137.16,137.15,14.76]
[1745182449780,55.47926961,137.16,137.15,14.76]
[1745182449963,62.77002493,137.16,137.15,14.76]
[1745182452875,26.0,137.12,137.1,249.78]
[1745182453082,36.82962075,137.11,137.08,0.03]
[1745182453285,10.82962075,137.09,137.08,0.03]
[1745182469212,18.12409883,137.09,137.08,0.03]
[1745182469412,10.82962075,137.09,137.08,0.03]
[1745182470014,18.12409883,137.09,137.08,0.03]
[1745182478026,18.12409883,137.09,137.08,14.79]
[1745182479406,26.0,137.06,137.03,80.67]
[1745182479626,26.0,137.06,137.04,14.76]
[1745182480127,87.80042688,137.11,137.04,14.76]
[1745182480128,26.0,137.05,137.04,14.76]
[1745182480518,26.0,137.04,137.03,14.76]
[1745182480722,80.14810375,137.04,137.03,14.76]
[1745182481729,44.12676027,137.04,137.03,14.76]
[1745182482236,36.82962075,137.04,137.03,14.76]
[1745182484241,18.64964886,137.08,137.03,14.76]
[1745182484242,10.82962075,137.05,137.03,14.76]
[1745182484447,10.82962075,137.06,137.03,14.76]
[1745182484735,26.0,137.07,137.03,25.58962075]
[1745182485509,10.82962075,137.08,137.03,25.58962075]
[1745182485921,26.0,137.07,137.03,25.58962075]
[1745182488736,26.0,137.11,137.05,17.06912075]
[1745182488942,10.82962075,137.1,137.05,97.73912075]
[1745182489133,10.82962075,137.1,137.06,1.5319]
[1745182489318,36.82962075,137.1,137.06,1.5319]
[1745182489936,26.0,137.1,137.06,12.36152075]
[1745182490125,10.82962075,137.14,137.09,10.82962075]
[1745182490310,0.063,137.15,137.1,25.58962075]
[1745182490514,0.063,137.15,137.11,12.36152075]
[1745182490734,36.89262075,137.15,137.11,1.5319]
[1745182491039,10.82962075,137.14,137.11,1.5319]
[1745182491839,36.89262075,137.15,137.11,1.5319]
[1745182492318,36.89262075,137.15,137.11,12.36152075]
[1745182492534,10.89262075,137.15,137.11,12.36152075]
[1745182493035,10.82962075,137.14,137.11,1.5319]
[1745182493940,10.82962075,137.13,137.11,1.5319]
[1745182494245,10.82962075,137.13,137.1,14.76]
[1745182497973,10.82962075,137.11,137.1,14.76]
[1745182499537,29.47926961,137.11,137.1,14.76]
[1745182499938,55.47926961,137.11,137.1,14.76]
[1745182500651,36.82962075,137.11,137.1,14.76]
[1745182506055,26.0,137.11,137.1,14.76]
[1745182506737,36.82962075,137.11,137.1,14.76]
[1745182507128,26.0,137.11,137.1,14.76]
[1745182507445,36.82962075,137.11,137.1,14.76]
[1745182507670,26.0,137.12,137.1,14.76]
[1745182508335,10.82962075,137.11,137.1,14.76]
[1745182522545,29.47926961,137.11,137.1,14.76]
[1745182523170,36.82962075,137.12,137.1,14.76]
[1745182525383,29.47926961,137.11,137.1,14.76]
[1745182526578,10.82962075,137.11,137.1,14.76]
[1745182528268,29.47926961,137.11,137.1,14.76]
[1745182529082,10.82962075,137.11,137.1,14.76]
[1745182534679,26.0,137.11,137.1,14.76]
[1745182534880,36.82962075,137.11,137.1,14.76]
[1745182535681,55.47926961,137.11,137.1,14.76]
[1745182538083,99.11926961,137.11,137.1,14.76]
[1745182538381,36.82962075,137.11,137.1,14.76]
[1745182540183,26.0,137.13,137.1,14.76]
[1745182540563,36.82962075,137.13,137.1,14.76]
[1745182540762,10.82962075,137.13,137.1,14.76]
[1745182542170,26.063,137.15,137.1,14.76]
[1745182542373,10.82962075,137.14,137.1,14.76]
[1745182544276,26.0,137.14,137.1,25.58962075]
[1745182544482,36.82962075,137.14,137.1,14.76]
[1745182545884,26.0,137.14,137.1,14.76]
[1745182546066,26.0,137.14,137.1,25.58962075]
[1745182549971,26.0,137.14,137.11,10.82962075]
[1745182551897,26.0,137.14,137.1,345.27]
[1745182551898,26.0,137.14,137.1,356.09962075]
[1745182552692,10.89262075,137.15,137.1,356.09962075]
[1745182555392,10.89262075,137.15,137.1,345.27]
[1745182555697,10.82962075,137.14,137.1,356.09962075]
[1745182556993,10.82962075,137.14,137.1,345.27]
[1745182559407,62.28964886,137.1,137.01,1.5497]
[1745182559691,10.82962075,137.03,137.02,14.77]
[1745182560468,18.64964886,137.06,137.02,14.77]
[1745182560469,10.82962075,137.04,137.02,14.77]
[1745182560684,10.82962075,137.03,137.02,14.77]
[1745182561397,29.47926961,137.03,137.02,14.77]
[1745182569784,18.64964886,137.03,137.02,14.77]
[1745182570500,10.82962075,137.03,137.02,14.77]
[1745182570706,26.0,137.03,137.02,14.77]
[1745182571306,36.82962075,137.03,137.02,14.77]
[1745182571885,55.47926961,137.03,137.02,14.77]
[1745182572086,99.11926961,137.03,137.02,0.03]
[1745182572916,106.41694165,137.03,137.02,0.03]
[1745182573486,62.28964886,137.02,137.0,17.223713]
[1745182573695,29.47926961,137.01,137.0,17.223713]
[1745182576006,55.47926961,137.01,137.0,17.223713]
[1745182578401,99.11926961,137.01,137.0,17.223713]
[1745182580408,73.11926961,137.01,137.0,17.223713]
[1745182582315,80.41800692,137.01,137.0,17.223713]
[1745182582913,73.11926961,137.01,137.0,17.223713]
[1745182592621,26.0,136.94,136.88,1.6038]
[1745182592802,26.0,136.9,136.88,1.6038]
[1745182593002,36.82962075,136.9,136.88,1.6038]
[1745182593714,36.82962075,136.9,136.86,6.4505]
[1745182593715,10.82962075,136.89,136.86,6.4505]
[1745182593923,10.82962075,136.88,136.86,6.4505]
[1745182594128,55.47926961,136.9,136.86,6.4505]
[1745182594415,10.82962075,136.88,136.86,6.4505]
[1745182595323,10.82962075,136.87,136.85,14.74]
[1745182595555,10.82962075,136.86,136.85,14.74]
[1745182598226,29.47926961,136.86,136.85,14.74]
[1745182598718,29.47926961,136.86,136.78,250.1]
[1745182598719,26.0,136.83,136.78,330.77]
[1745182599027,10.82962075,136.81,136.79,14.76]
[1745182600229,26.0,136.82,136.79,14.76]
[1745182600420,10.82962075,136.82,136.79,14.76]
[1745182602029,10.82962075,136.81,136.79,14.76]